fUSD/lending_fUSD_20250101
["ID","MTS","AMOUNT","RATE_DAILY","PERIOD"]
[347345907,1735716054010,1000.0,0.00010167,2]
[347345909,1735716062381,257.89,0.00010137,2]
[347345910,1735716153073,214.45846,0.0001094,2]
[347345911,1735716153735,150.010116,0.0002,120]
[347345912,1735716154504,150.010116,0.0002,120]
[347345913,1735716154922,150.010116,0.0002,120]
[347345914,1735716155346,150.010116,0.0002,120]
[347345915,1735716155756,150.010116,0.0002,120]
[347345916,1735716156186,150.010116,0.0002,120]
[347345917,1735716156454,214.45846,0.0001096,2]
[347345918,1735716156583,150.010116,0.0002,120]
[347345919,1735716157406,150.010116,0.0002,120]
[347345920,1735716157546,150.010116,0.0002,120]
[347345921,1735716157938,150.010116,0.0002,120]
[347345922,1735716159205,150.010116,0.0002,120]
[347345923,1735716178365,260.25,0.00010133,2]
[347345924,1735716268460,167.292,0.0001074,2]
[347345925,1735716295292,329.81,8.219e-05,2]
[347345926,1735716295513,329.81,0.00010483,2]
[347345927,1735716308998,244.25,0.00010125,2]
[347345928,1735716313287,150.0,0.00010652,2]
[347345929,1735716313618,150.0,0.00010849,2]
[347345930,1735716317320,150.0,0.00010652,2]
[347345931,1735716325151,150.0,0.00010652,2]
[347345932,1735716330524,150.20626655,0.00010652,2]
[347345933,1735716489699,70000.0,0.000106,2]
[347345953,1735716631810,-388.23269362,0.00011014,2]
[347345954,1735716631822,-712.02367317,0.00011014,2]
[347345955,1735716631880,-645.80976704,0.00011014,2]
[347345956,1735716631893,-1237.01486617,0.00011014,2]
[347345957,1735716631902,-1965.257156,0.00011028,2]
[347345958,1735716631911,-300.0,0.00011029,2]
[347345959,1735716631921,-5930.51350981,0.0001103,2]
[347345960,1735716631956,-1997.21734795,0.0001103,2]
[347345965,1735716632515,1479.07995056,0.00010928,2]
[347345966,1735716634995,9800.0,0.0001103,9]
[347345967,1735716635807,158.93,0.00010128,2]
[347345972,1735716637681,-13749.21415508,0.0001103,2]
[347345973,1735716637732,-2896.39516468,0.0001103,2]
[347345974,1735716637878,-918.803945,0.0001103,2]
[347345975,1735716637891,-11511.68220636,0.0001103,2]
[347345976,1735716637939,-902.63081299,0.0001103,2]
[347345981,1735716638566,648.89,0.00010164,2]
[347345982,1735716638848,9800.0,0.0001103,11]
[347345983,1735716639481,45762.59,0.00010164,2]
[347345985,1735716639642,-13014.00510961,0.0001103,2]
[347345986,1735716639652,-575.96339699,0.0001103,2]
[347345987,1735716639661,-1389.72,0.0001103,2]
[347345988,1735716639670,-5181.53,0.0001103,2]
[347345989,1735716639680,-2557.27,0.0001103,2]
[347345990,1735716639689,-7000.53,0.0001103,2]
[347345991,1735716639698,-3261.94,0.0001103,2]
[347345992,1735716639707,-5856.62,0.0001103,2]
[347345993,1735716639716,-22045.31,0.0001103,2]
[347345994,1735716639725,-1043.47,0.0001103,2]
[347345995,1735716639734,-7865.15,0.0001103,2]
[347345996,1735716639743,-2135.95,0.0001103,2]
[347345997,1735716639752,-4039.91,0.0001103,2]
[347345998,1735716639761,-9449.71,0.0001103,2]
[347345999,1735716639770,-4472.32,0.0001103,2]
[347346000,1735716639779,-1828.26,0.0001103,2]
[347346001,1735716639788,-7917.46,0.0001103,2]
[347346002,1735716639797,-2524.28,0.0001103,2]
[347346003,1735716639806,-3743.52,0.0001103,2]
[347346004,1735716639815,-8015.11,0.0001103,2]
[347346005,1735716639825,-12943.14,0.0001103,2]
[347346006,1735716639835,-672.03,0.0001103,2]
[347346007,1735716639845,-1256.75,0.0001103,2]
[347346008,1735716639855,-3170.72,0.0001103,2]
[347346009,1735716639864,-500.0,0.0001103,2]
[347346010,1735716639875,-738.7,0.0001103,2]
[347346011,1735716639884,-1158.4,0.0001103,2]
[347346012,1735716639893,-500.0,0.0001103,2]
[347346013,1735716639903,-559.64,0.0001103,2]
[347346014,1735716639912,-689.28,0.0001103,2]
[347346015,1735716639922,-1126.98,0.0001103,2]
[347346016,1735716639932,-1268.0,0.0001103,2]
[347346017,1735716639942,-508.36,0.0001103,2]
[347346018,1735716639952,-2782.23,0.0001103,2]
[347346019,1735716639962,-3049.59,0.0001103,2]
[347346021,1735716639971,-2034.94,0.00011031,2]
[347346023,1735716639981,-940.61,0.00011031,2]
[347346025,1735716639990,-500.0,0.00011031,2]
[347346027,1735716640000,-422.8998395,0.00011031,2]
[347346029,1735716640009,-875.14,0.00011031,2]
[347346031,1735716640019,-2232.44,0.00011031,2]
[347346032,1735716640028,-3764.43,0.00011031,2]
[347346034,1735716640037,-983.38,0.00011031,2]
[347346036,1735716640047,-769.1,0.00011031,2]
[347346038,1735716640056,-2173.81,0.00011031,2]
[347346040,1735716640066,-536.04,0.00011031,2]
[347346042,1735716640076,-500.0,0.00011031,2]
[347346044,1735716640085,-1964.56,0.00011031,2]
[347346046,1735716640094,-500.0,0.00011031,2]
[347346048,1735716640103,-500.0,0.00011031,2]
[347346050,1735716640112,-826.57,0.00011031,2]
[347346052,1735716640122,-2230.38,0.00011031,2]
[347346054,1735716640131,-500.0,0.00011031,2]
[347346056,1735716640140,-823.22,0.00011031,2]
[347346058,1735716640149,-500.0,0.00011031,2]
[347346061,1735716640159,-2592.8,0.00011031,2]
[347346063,1735716640168,-810.0,0.00011031,2]
[347346065,1735716640177,-924.55,0.00011031,2]
[347346067,1735716640187,-3517.42,0.00011031,2]
[347346069,1735716640196,-571.9,0.00011031,2]
[347346071,1735716640205,-2262.46,0.00011031,2]
[347346073,1735716640214,-2531.06,0.00011031,2]
[347346075,1735716640223,-3421.55,0.00011031,2]
[347346077,1735716640233,-2559.57,0.00011031,2]
[347346079,1735716640242,-3523.87,0.00011031,2]
[347346081,1735716640251,-1160.44,0.00011031,2]
[347346083,1735716640264,-500.0,0.00011031,2]
[347346085,1735716640273,-334.41376454,0.00011031,2]
[347346087,1735716640285,-1049.41419005,0.00011031,2]
[347346089,1735716640296,-281.90204541,0.00011031,2]
[347346091,1735716640306,-500.0,0.00011031,2]
[347346093,1735716640315,-903.86917363,0.00011031,2]
[347346095,1735716640327,-229.11082637,0.00011031,2]
[347346097,1735716640336,-500.0,0.00011031,2]
[347346099,1735716640345,-278.41229459,0.00011031,2]
[347346109,1735716640424,-1292.22770541,0.00011031,2]
[347346111,1735716640434,-500.0,0.00011031,2]
[347346113,1735716640443,-500.0,0.00011031,2]
[347346115,1735716640452,-500.0,0.00011031,2]
[347346117,1735716640461,-3542.76,0.00011031,2]
[347346119,1735716640470,-643.32,0.00011031,2]
[347346121,1735716640479,-2219.34,0.00011031,2]
[347346123,1735716640488,-2357.85,0.00011031,2]
[347346125,1735716640498,-1132.38,0.00011031,2]
[347346127,1735716640507,-530.41,0.00011031,2]
[347346129,1735716640516,-2224.99,0.00011031,2]
[347346131,1735716640524,-500.0,0.00011031,2]
[347346133,1735716640534,-2226.86,0.00011031,2]
[347346135,1735716640544,-577.68,0.00011031,2]
[347346137,1735716640554,-2947.69,0.00011031,2]
[347346139,1735716640565,-500.0,0.00011031,2]
[347346141,1735716640574,-3512.54,0.00011031,2]
[347346143,1735716640583,-500.0,0.00011031,2]
[347346145,1735716640593,-500.0,0.00011031,2]
[347346147,1735716640602,-2638.1,0.00011031,2]
[347346149,1735716640612,-1968.61,0.00011031,2]
[347346151,1735716640622,-2636.09,0.00011031,2]
[347346153,1735716640631,-705.92,0.00011031,2]
[347346155,1735716640641,-500.0,0.00011031,2]
[347346157,1735716640650,-713.75,0.00011031,2]
[347346159,1735716640660,-1008.99,0.00011031,2]
[347346161,1735716640668,-2246.85,0.00011031,2]
[347346163,1735716640677,-2075.51,0.00011031,2]
[347346164,1735716640688,-500.0,0.00011031,2]
[347346166,1735716640697,-500.0,0.00011031,2]
[347346168,1735716640706,-3348.24,0.00011031,2]
[347346170,1735716640715,-501.9,0.00011031,2]
[347346172,1735716640724,-1434.02,0.00011031,2]
[347346173,1735716640733,-906.24,0.00011031,2]
[347346174,1735716640742,-3771.87,0.00011031,2]
[347346175,1735716640751,-1388.84,0.00011031,2]
[347346176,1735716640760,-646.44,0.00011031,2]
[347346177,1735716640770,-500.0,0.00011031,2]
[347346178,1735716640778,-927.69,0.00011031,2]
[347346179,1735716640787,-1781.63,0.00011031,2]
[347346180,1735716640796,-500.0,0.00011031,2]
[347346181,1735716640805,-3509.65,0.00011031,2]
[347346182,1735716640814,-711.18,0.00011031,2]
[347346183,1735716640823,-500.0,0.00011031,2]
[347346184,1735716640832,-1023.34,0.00011031,2]
[347346185,1735716640841,-2766.77,0.00011031,2]
[347346187,1735716640850,-500.0,0.00011031,2]
[347346189,1735716640859,-3217.66,0.00011031,2]
[347346191,1735716640868,-3513.24,0.00011031,2]
[347346193,1735716640877,-500.0,0.00011031,2]
[347346195,1735716640886,-500.0,0.00011031,2]
[347346197,1735716640895,-1313.01,0.00011031,2]
[347346199,1735716640904,-1726.89,0.00011031,2]
[347346201,1735716640913,-1265.95,0.00011031,2]
[347346203,1735716640922,-500.0,0.00011031,2]
[347346205,1735716640931,-1946.66,0.00011031,2]
[347346207,1735716640942,-500.0,0.00011031,2]
[347346209,1735716640950,-2176.33,0.00011031,2]
[347346211,1735716640959,-659.88,0.00011031,2]
[347346213,1735716640969,-651.24,0.00011031,2]
[347346215,1735716640978,-1851.9,0.00011031,2]
[347346217,1735716640987,-500.0,0.00011031,2]
[347346219,1735716640996,-2554.33,0.00011031,2]
[347346221,1735716641005,-513.15,0.00011031,2]
[347346223,1735716641014,-500.0,0.00011031,2]
[347346225,1735716641023,-1454.82,0.00011031,2]
[347346227,1735716641031,-2006.04,0.00011031,2]
[347346229,1735716641040,-1460.59,0.00011031,2]
[347346231,1735716641049,-620.41,0.00011031,2]
[347346233,1735716641059,-1728.53,0.00011031,2]
[347346235,1735716641070,-500.0,0.00011031,2]
[347346237,1735716641079,-2441.35,0.00011031,2]
[347346239,1735716641088,-500.0,0.00011031,2]
[347346241,1735716641097,-3456.05,0.00011031,2]
[347346243,1735716641106,-585.6110631,0.00011031,2]
[347346245,1735716641115,-1288.23,0.00011031,2]
[347346247,1735716641124,-1935.94,0.00011031,2]
[347346249,1735716641133,-2957.01,0.00011031,2]
[347346251,1735716641142,-2605.32,0.00011031,2]
[347346253,1735716641151,-1951.12,0.00011031,2]
[347346255,1735716641160,-583.04,0.00011031,2]
[347346257,1735716641169,-500.0,0.00011031,2]
[347346259,1735716641178,-779.41,0.00011031,2]
[347346261,1735716641187,-1918.96,0.00011031,2]
[347346263,1735716641196,-1061.3,0.00011031,2]
[347346265,1735716641205,-5651.54,0.00011031,2]
[347346267,1735716641214,-1702.74,0.00011031,2]
[347346269,1735716641223,-2086.98,0.00011031,2]
[347346271,1735716641231,-500.0,0.00011031,2]
[347346273,1735716641240,-866.85,0.00011031,2]
[347346274,1735716641249,-2690.01,0.00011031,2]
[347346277,1735716641263,-500.0,0.00011031,2]
[347346279,1735716641272,-500.0,0.00011031,2]
[347346281,1735716641281,-727.33,0.00011031,2]
[347346283,1735716641290,-500.0,0.00011031,2]
[347346285,1735716641300,-500.0,0.00011031,2]
[347346287,1735716641309,-3543.81,0.00011031,2]
[347346289,1735716641318,-729.45,0.00011031,2]
[347346291,1735716641330,-3604.41,0.00011031,2]
[347346293,1735716641340,-1448.81,0.00011031,2]
[347346295,1735716641349,-2510.02,0.00011031,2]
[347346297,1735716641358,-500.0,0.00011031,2]
[347346299,1735716641367,-1048.15,0.00011031,2]
[347346301,1735716641376,-500.0,0.00011031,2]
[347346303,1735716641385,-361.20062682,0.00011031,2]
[347346305,1735716641394,-2282.67,0.00011031,2]
[347346307,1735716641403,-2044.83,0.00011031,2]
[347346309,1735716641412,-1499.16741556,0.00011031,2]
[347346311,1735716641425,-849.88258444,0.00011031,2]
[347346313,1735716641434,-1659.1,0.00011031,2]
[347346315,1735716641444,-2410.73907627,0.00011031,2]
[347346461,1735716642721,9800.0,0.0001103,12]
[347346489,1735716642934,-1342.76092373,0.00011031,2]
[347346491,1735716642943,-660.94638842,0.00011031,2]
[347346532,1735716646329,9800.0,0.0001103,13]
[347346533,1735716657361,10923.0,0.0001103,14]
[347346534,1735716668053,816.1,0.00010959,2]
[347346535,1735716699494,172.48428742,0.0001093,2]
[347346536,1735716708300,600.0,0.000105,3]
[347346537,1735716710404,1200.0,0.000106,3]
[347346538,1735716712494,1800.0,0.000107,3]
[347346539,1735716714603,2500.0,0.000108,3]
[347346540,1735716716789,3100.0,0.000109,3]
[347346541,1735716718057,2000.0,0.00010159,2]
[347346542,1735716758762,165.01883047,0.00010933,2]
[347346543,1735716824119,170.13,0.00010198,2]
[347346544,1735716906699,163.41,8.153e-05,2]
[347346545,1735716938403,250.0,0.00010197,2]
[347346546,1735716957298,1000.0,0.00010192,2]
[347346547,1735716958025,160.246,0.0001074,2]
[347346548,1735716991664,1763.08,0.00010204,2]
[347346549,1735717003765,400.0,0.00010986,2]
[347346550,1735717040474,159.07,0.00010204,2]
[347346551,1735717057224,265.85,0.00010199,2]
[347346552,1735717070869,-500.0,0.0001103,2]
[347346553,1735717070893,-2139.42,0.0001103,2]
[347346554,1735717070916,-770.95,0.0001103,2]
[347346555,1735717070939,-463.640854,0.0001103,2]
[347346556,1735717070963,-1288.98,0.0001103,2]
[347346557,1735717070986,-838.68,0.0001103,2]
[347346558,1735717071009,-1088.76,0.0001103,2]
[347346559,1735717071032,-737.06,0.0001103,2]
[347346560,1735717071054,-2104.58,0.0001103,2]
[347346561,1735717071076,-500.0,0.0001103,2]
[347346562,1735717071099,-500.0,0.0001103,2]
[347346563,1735717071121,-576.22,0.0001103,2]
[347346564,1735717071145,-500.0,0.0001103,2]
[347346565,1735717071167,-1882.71,0.0001103,2]
[347346566,1735717071190,-513.71,0.0001103,2]
[347346567,1735717071213,-500.0,0.0001103,2]
[347346568,1735717071235,-742.05,0.0001103,2]
[347346569,1735717071257,-500.0,0.0001103,2]
[347346570,1735717071280,-500.0,0.0001103,2]
[347346571,1735717071302,-382.87397463,0.0001103,2]
[347346572,1735717071325,-520.78,0.0001103,2]
[347346573,1735717071348,-500.0,0.0001103,2]
[347346574,1735717071370,-1149.51,0.0001103,2]
[347346575,1735717071395,-1348.31,0.0001103,2]
[347346576,1735717071420,-1279.12,0.0001103,2]
[347346577,1735717071444,-792.13,0.0001103,2]
[347346578,1735717071466,-510.94,0.0001103,2]
[347346579,1735717071490,-500.0,0.0001103,2]
[347346580,1735717071513,-2168.19,0.0001103,2]
[347346581,1735717071537,-500.0,0.0001103,2]
[347346582,1735717071559,-1472.83,0.0001103,2]
[347346583,1735717071582,-516.4,0.0001103,2]
[347346584,1735717071604,-500.0,0.0001103,2]
[347346585,1735717071626,-1686.17,0.0001103,2]
[347346586,1735717071649,-1024.09,0.0001103,2]
[347346587,1735717071671,-500.0,0.0001103,2]
[347346588,1735717071695,-500.0,0.0001103,2]
[347346589,1735717071717,-500.0,0.0001103,2]
[347346590,1735717071740,-811.96,0.0001103,2]
[347346591,1735717071762,-500.0,0.0001103,2]
[347346592,1735717071785,-1596.32,0.0001103,2]
[347346593,1735717072118,-500.0,0.0001103,2]
[347346594,1735717072145,-500.0,0.0001103,2]
[347346595,1735717072168,-500.0,0.0001103,2]
[347346596,1735717072191,-1040.58,0.0001103,2]
[347346597,1735717072213,-500.0,0.0001103,2]
[347346598,1735717072235,-622.39629044,0.0001103,2]
[347346599,1735717072257,-788.2,0.0001103,2]
[347346600,1735717072279,-888.24,0.0001103,2]
[347346601,1735717072302,-500.0,0.0001103,2]
[347346602,1735717072325,-500.0,0.0001103,2]
[347346603,1735717072347,-500.0,0.0001103,2]
[347346604,1735717072370,-500.0,0.0001103,2]
[347346605,1735717072394,-500.0,0.0001103,2]
[347346606,1735717072419,-856.57,0.0001103,2]
[347346607,1735717072443,-674.13,0.0001103,2]
[347346608,1735717072467,-500.0,0.0001103,2]
[347346609,1735717072490,-1691.61,0.0001103,2]
[347346610,1735717072512,-500.0,0.0001103,2]
[347346611,1735717072535,-500.0,0.0001103,2]
[347346612,1735717072557,-500.0,0.0001103,2]
[347346613,1735717072579,-1014.36,0.0001103,2]
[347346614,1735717072601,-966.67,0.0001103,2]
[347346615,1735717072624,-2126.87,0.0001103,2]
[347346616,1735717072647,-500.0,0.0001103,2]
[347346617,1735717072670,-500.0,0.0001103,2]
[347346618,1735717072693,-520.82,0.0001103,2]
[347346619,1735717072714,-1085.19,0.0001103,2]
[347346620,1735717072737,-500.0,0.0001103,2]
[347346621,1735717072763,-508.31,0.0001103,2]
[347346622,1735717072786,-639.52769942,0.0001103,2]
[347346623,1735717072809,-1174.58,0.0001103,2]
[347346624,1735717072832,-500.0,0.0001103,2]
[347346625,1735717072854,-500.0,0.0001103,2]
[347346626,1735717072876,-551.88,0.0001103,2]
[347346627,1735717072897,-500.0,0.0001103,2]
[347346628,1735717072919,-500.0,0.0001103,2]
[347346629,1735717072941,-568.38,0.0001103,2]
[347346630,1735717072963,-500.0,0.0001103,2]
[347346631,1735717072984,-500.0,0.0001103,2]
[347346632,1735717073006,-553.61,0.0001103,2]
[347346633,1735717073029,-500.0,0.0001103,2]
[347346634,1735717073053,-500.0,0.0001103,2]
[347346635,1735717073075,-2824.87,0.0001103,2]
[347346636,1735717073098,-12403.84,0.0001103,2]
[347346637,1735717073120,-500.0,0.0001103,2]
[347346638,1735717073143,-530.34,0.0001103,2]
[347346639,1735717073165,-500.0,0.0001103,2]
[347346640,1735717073186,-500.0,0.0001103,2]
[347346641,1735717073208,-500.0,0.0001103,2]
[347346642,1735717073230,-682.83,0.0001103,2]
[347346643,1735717073252,-758.24,0.0001103,2]
[347346644,1735717073273,-500.0,0.0001103,2]
[347346645,1735717073296,-2528.18,0.0001103,2]
[347346646,1735717073319,-3038.61,0.0001103,2]
[347346647,1735717073342,-1586.35,0.0001103,2]
[347346648,1735717073365,-500.0,0.0001103,2]
[347346649,1735717073387,-882.8,0.0001103,2]
[347346650,1735717073414,-500.0,0.0001103,2]
[347346651,1735717073442,-676.5,0.0001103,2]
[347346652,1735717073465,-2526.25,0.0001103,2]
[347346653,1735717073488,-500.0,0.0001103,2]
[347346654,1735717073510,-500.0,0.0001103,2]
[347346655,1735717073532,-3332.42,0.0001103,2]
[347346656,1735717073555,-966.95,0.0001103,2]
[347346657,1735717073578,-500.0,0.0001103,2]
[347346658,1735717073602,-2339.63,0.0001103,2]
[347346659,1735717073624,-500.0,0.0001103,2]
[347346660,1735717073646,-500.0,0.0001103,2]
[347346661,1735717073668,-14771.2,0.0001103,2]
[347346662,1735717073691,-843.29,0.0001103,2]
[347346663,1735717073713,-547.98,0.0001103,2]
[347346664,1735717073735,-500.0,0.0001103,2]
[347346665,1735717073756,-961.87,0.0001103,2]
[347346666,1735717073778,-1374.27,0.0001103,2]
[347346667,1735717073800,-500.0,0.0001103,2]
[347346668,1735717073823,-772.65,0.0001103,2]
[347346669,1735717073846,-8080.06,0.0001103,2]
[347346670,1735717073867,-1330.97,0.0001103,2]
[347346671,1735717073890,-5797.35,0.0001103,2]
[347346672,1735717073912,-500.0,0.0001103,2]
[347346673,1735717073933,-920.27,0.0001103,2]
[347346674,1735717073955,-2603.53,0.0001103,2]
[347346675,1735717073978,-500.0,0.0001103,2]
[347346676,1735717074000,-889.04,0.0001103,2]
[347346677,1735717074021,-500.0,0.0001103,2]
[347346678,1735717074043,-868.48,0.0001103,2]
[347346679,1735717074065,-759.6,0.0001103,2]
[347346680,1735717074086,-1001.11,0.0001103,2]
[347346681,1735717074108,-614.16,0.0001103,2]
[347346682,1735717074131,-500.0,0.0001103,2]
[347346683,1735717074156,-1740.27,0.0001103,2]
[347346684,1735717074180,-500.0,0.0001103,2]
[347346685,1735717074203,-500.0,0.0001103,2]
[347346686,1735717074227,-500.0,0.0001103,2]
[347346687,1735717074250,-5416.05,0.0001103,2]
[347346688,1735717074272,-660.56,0.0001103,2]
[347346689,1735717074295,-1608.02,0.0001103,2]
[347346690,1735717074316,-809.99,0.0001103,2]
[347346691,1735717074339,-1865.55,0.0001103,2]
[347346692,1735717074361,-2381.25,0.0001103,2]
[347346693,1735717074384,-2666.31,0.0001103,2]
[347346694,1735717074408,-500.0,0.0001103,2]
[347346695,1735717074430,-500.0,0.0001103,2]
[347346696,1735717074453,-10505.99,0.0001103,2]
[347346697,1735717074474,-1895.76,0.0001103,2]
[347346698,1735717074497,-3366.86,0.0001103,2]
[347346699,1735717074519,-500.0,0.0001103,2]
[347346700,1735717074541,-1774.74,0.0001103,2]
[347346701,1735717074564,-500.0,0.0001103,2]
[347346702,1735717074589,-830.23,0.0001103,2]
[347346703,1735717074612,-1258.3,0.0001103,2]
[347346704,1735717074635,-1331.82,0.0001103,2]
[347346705,1735717074658,-500.0,0.0001103,2]
[347346706,1735717074683,-1176.3,0.0001103,2]
[347346707,1735717074705,-1394.2,0.0001103,2]
[347346708,1735717074727,-2085.65,0.0001103,2]
[347346709,1735717074750,-4965.64,0.0001103,2]
[347346710,1735717074773,-654.11,0.0001103,2]
[347346711,1735717075020,-3930.24,0.0001103,2]
[347346712,1735717075043,-1388.45,0.0001103,2]
[347346713,1735717075066,-500.0,0.0001103,2]
[347346714,1735717075089,-658.72,0.0001103,2]
[347346715,1735717075112,-2843.49,0.0001103,2]
[347346716,1735717075133,-500.0,0.0001103,2]
[347346717,1735717075156,-624.11,0.0001103,2]
[347346718,1735717075178,-966.17,0.0001103,2]
[347346719,1735717075202,-500.0,0.0001103,2]
[347346720,1735717075224,-500.0,0.0001103,2]
[347346721,1735717075247,-3126.38,0.0001103,2]
[347346722,1735717075270,-500.0,0.0001103,2]
[347346723,1735717075293,-1278.01,0.0001103,2]
[347346724,1735717075315,-500.0,0.0001103,2]
[347346725,1735717075338,-500.0,0.0001103,2]
[347346726,1735717075360,-500.0,0.0001103,2]
[347346727,1735717075382,-532.18,0.0001103,2]
[347346728,1735717075405,-2450.71,0.0001103,2]
[347346729,1735717075427,-1078.74,0.0001103,2]
[347346730,1735717075449,-3312.05,0.0001103,2]
[347346731,1735717075470,-500.0,0.0001103,2]
[347346732,1735717075491,-500.0,0.0001103,2]
[347346733,1735717075514,-6708.84,0.0001103,2]
[347346734,1735717075537,-830.73,0.0001103,2]
[347346735,1735717075558,-500.0,0.0001103,2]
[347346736,1735717075580,-1855.28,0.0001103,2]
[347346737,1735717075602,-2541.36,0.0001103,2]
[347346738,1735717075625,-1292.8,0.0001103,2]
[347346739,1735717075647,-1098.02,0.0001103,2]
[347346740,1735717075669,-500.0,0.0001103,2]
[347346741,1735717075691,-3126.03,0.0001103,2]
[347346742,1735717075713,-500.0,0.0001103,2]
[347346743,1735717075735,-2496.77,0.0001103,2]
[347346744,1735717075756,-615.34,0.0001103,2]
[347346745,1735717075779,-999.99,0.0001103,2]
[347346746,1735717075800,-699.06,0.0001103,2]
[347346747,1735717075823,-579.96,0.0001103,2]
[347346748,1735717075845,-500.0,0.0001103,2]
[347346749,1735717075866,-5612.6,0.0001103,2]
[347346750,1735717075888,-500.0,0.0001103,2]
[347346751,1735717075910,-880.94,0.0001103,2]
[347346752,1735717075932,-1205.48,0.0001103,2]
[347346753,1735717075956,-2405.43,0.0001103,2]
[347346754,1735717075978,-7537.44,0.0001103,2]
[347346755,1735717076000,-1902.12,0.0001103,2]
[347346756,1735717076021,-21126.75,0.0001103,2]
[347346757,1735717076042,-708.35,0.0001103,2]
[347346758,1735717076066,-1631.79,0.0001103,2]
[347346759,1735717076089,-1026.28,0.0001103,2]
[347346760,1735717076111,-1959.62,0.0001103,2]
[347346761,1735717076133,-586.29,0.0001103,2]
[347346762,1735717076159,-6046.04,0.0001103,2]
[347346763,1735717076184,-1766.86,0.0001103,2]
[347346764,1735717076206,-644.74,0.0001103,2]
[347346765,1735717076229,-6259.19,0.0001103,2]
[347346766,1735717076251,-879.95,0.0001103,2]
[347346767,1735717076274,-697.03,0.0001103,2]
[347346768,1735717076296,-9055.97,0.0001103,2]
[347346769,1735717076318,-2046.95,0.0001103,2]
[347346770,1735717076340,-1605.26,0.0001103,2]
[347346771,1735717076362,-3538.73,0.0001103,2]
[347346772,1735717076385,-500.0,0.0001103,2]
[347346773,1735717076408,-3396.15,0.0001103,2]
[347346774,1735717076430,-500.0,0.0001103,2]
[347346775,1735717076452,-500.0,0.0001103,2]
[347346776,1735717076473,-576.83,0.0001103,2]
[347346777,1735717076495,-4285.98,0.0001103,2]
[347346778,1735717076516,-703.85,0.0001103,2]
[347346779,1735717076537,-500.0,0.0001103,2]
[347346780,1735717076559,-1503.97,0.0001103,2]
[347346781,1735717076580,-1297.91,0.0001103,2]
[347346782,1735717076602,-2819.63,0.0001103,2]
[347346783,1735717076624,-3895.2,0.0001103,2]
[347346784,1735717076645,-500.0,0.0001103,2]
[347346785,1735717076667,-7587.56,0.0001103,2]
[347346786,1735717076689,-565.95,0.0001103,2]
[347346787,1735717076710,-2187.56,0.0001103,2]
[347346788,1735717076732,-3828.57,0.0001103,2]
[347346789,1735717076754,-1372.36,0.0001103,2]
[347346790,1735717076776,-500.0,0.0001103,2]
[347346791,1735717076798,-2329.33,0.0001103,2]
[347346792,1735717076821,-2419.1,0.0001103,2]
[347346793,1735717076844,-1589.97,0.0001103,2]
[347346794,1735717076866,-928.56,0.0001103,2]
[347346795,1735717076889,-500.0,0.0001103,2]
[347346796,1735717076912,-735.51,0.0001103,2]
[347346797,1735717076934,-1752.08,0.0001103,2]